{"text_format":"3","workbook":"xlsx","n_sheets":5,"sheets":["Auswertung","Lieferantenfragebogen","Risikobetrachtung","Hilfstabelle","PID"],"not_rendered":{"images":1,"defined_names":21},"read":"whole","date_system":"1900"}

{"sheet":"Auswertung","index":0,"n_rows":41,"n_cols":6,"rows_kept":41,"hidden":true,"merged":[[7,4,7,5],[40,0,45,0]]}
[]
[]
[]
[]
[null,{"$f":"\"Lieferant: \"&Lieferantenfragebogen!D12","v":"Lieferant: "}]
[{"$nulls":4},"Risiko-Level",{"$f":"IF(C26>=19,\"A\",IF(C26>=9,\"B\",\"C\"))","v":"C"}]
[]
[{"$nulls":4},"Legende:"]
[{"$nulls":4},"  19 - 29 Punkte","A"]
[null,"Ergebnisse",null,null,"    9 - 18 Punkte","B"]
[{"$nulls":4}," -29 -  8 Punkte","C"]
[null,"Teil II"]
[null,"Zertifikate, Qualitätssicherung","Punkte"]
[null,"(1)",{"$f":"Bereich1","v":0}]
[null,"(2)",{"$f":"Bereich2","v":0}]
[null,"(3)",{"$f":"Bereich3","v":0}]
[null,"Ergebnis:",{"$f":"SUM(C14:C16)","v":0}]
[]
[]
[null,"Block A",{"$f":"BlockA","v":0}]
[null,"Block B",{"$f":"BlockB","v":0}]
[null,"Block C",{"$f":"BlockC","v":0}]
[null,null,{"$f":"SUM(C20:C22)","v":0}]
[]
[]
[null,"Gesamt:",{"$f":"SUM(C17,C23)","v":0}]
{"$rows_empty":14}
["BCF-LES-000  04"]

{"sheet":"Lieferantenfragebogen","index":1,"n_rows":206,"n_cols":26,"rows_kept":206,"merged":[[0,1,3,19],[4,1,8,19],[4,21,4,23],[6,21,6,22],[9,1,9,19],[10,1,10,19],[11,1,11,2],[11,3,11,19],[12,1,12,2],[12,3,12,19],[13,1,13,2],[13,3,13,8],[13,9,13,10],[13,11,13,19],[14,1,14,2],[14,3,14,19],[15,1,15,2],[15,3,15,8],[15,9,15,12],[15,13,15,19],[16,1,16,2],[16,3,16,8],[16,9,16,10],[16,11,16,19],[17,1,17,2],[17,3,17,19],[18,1,18,4],[18,6,18,8],[18,10,18,19],[19,1,19,4],[19,6,19,8],[19,10,19,19],[20,1,20,4],[20,5,20,19],[21,1,21,4],[21,6,21,19],[23,1,23,3],[23,4,23,7],[23,8,23,16],[23,17,23,19],[24,1,24,3],[24,4,24,7],[24,8,24,16],[24,17,24,19],[25,1,25,3],[25,4,25,7],[25,8,25,16],[25,17,25,19],[26,1,26,3],[26,4,26,7],[26,8,26,16],[26,17,26,19],[27,1,27,3],[27,4,27,7],[27,8,27,16],[27,17,27,19],[28,1,28,3],[28,4,28,7],[28,8,28,16],[28,17,28,19],[30,1,30,2],[30,3,30,6],[30,7,30,9],[30,10,30,13],[30,14,30,16],[30,17,30,19],[31,1,31,9],[31,10,31,19],[32,1,32,9],[32,10,32,19],[33,1,33,19],[34,1,34,9],[34,10,34,19],[35,1,35,19],[36,1,36,9],[36,10,36,19],[37,1,37,19],[39,1,39,4],[39,5,39,9],[39,10,39,13],[39,14,39,19],[40,1,40,4],[40,5,40,9],[40,10,40,13],[40,14,40,19],[41,1,41,4],[41,5,41,9],[41,10,41,13],[41,14,41,19],[43,1,43,2],[43,6,43,8],[43,10,43,14],[43,15,43,19],[45,1,45,19],[46,1,46,3],[46,4,46,6],[46,7,46,11],[46,12,46,19],[47,1,47,3],[47,4,47,6],[47,7,47,11],[47,12,47,19],[48,1,48,3],[48,4,48,6],[48,7,48,11],[48,12,48,19],[49,1,49,3],[49,4,49,6],[49,7,49,11],[49,12,49,19],[50,0,54,0],[50,1,50,3],[50,4,50,6],[50,7,50,11],[50,12,50,19],[52,16,52,19],[53,1,54,19],[56,1,56,17],[57,1,57,19],[58,1,65,2],[58,25,60,25],[60,4,60,7],[60,9,60,12],[60,14,60,15],[60,16,60,18],[61,4,61,7],[61,14,61,15],[62,4,62,7],[65,3,65,7],[65,8,65,12],[65,13,65,17],[67,2,67,19],[69,1,69,2],[69,3,69,18],[70,1,70,14],[70,16,70,17],[71,1,71,14],[71,16,71,17],[72,1,72,14],[72,16,72,17],[73,1,73,14],[73,16,73,17],[74,21,74,26],[75,1,75,14],[75,16,75,17],[76,1,76,14],[76,16,76,17],[77,1,77,14],[77,16,77,17],[78,1,78,14],[78,16,78,17],[79,1,79,14],[79,16,79,17],[80,21,80,26],[81,1,81,14],[81,16,81,17],[82,1,82,14],[82,16,82,17],[87,1,87,2],[87,3,87,18],[88,1,88,14],[88,16,88,17],[89,1,89,14],[89,16,89,17],[91,1,91,14],[91,16,91,17],[93,1,93,14],[93,16,93,17],[104,0,110,0],[108,16,108,19],[109,1,110,19],[113,1,113,2],[113,3,113,18],[114,1,114,14],[114,16,114,17],[115,1,115,14],[115,16,115,17],[117,1,117,14],[117,16,117,17],[118,1,118,14],[118,16,118,17],[120,1,120,14],[120,16,120,17],[122,1,122,14],[122,16,122,17],[123,1,123,14],[123,16,123,17],[124,1,124,14],[124,16,124,17],[125,1,125,14],[125,16,125,17],[126,1,126,14],[126,16,126,17],[127,1,127,19],[128,1,128,14],[128,16,128,17],[129,1,129,19],[130,1,130,14],[130,16,130,17],[131,1,131,19],[132,1,132,14],[132,16,132,17],[133,1,133,19],[134,1,136,6],[134,7,134,14],[134,16,134,17],[135,7,135,14],[135,16,135,17],[136,7,136,14],[136,16,136,17],[137,1,137,19],[138,1,138,14],[138,16,138,17],[139,1,139,14],[139,16,139,17],[140,1,140,19],[141,1,141,19],[142,2,142,8],[142,10,142,19],[143,2,143,8],[143,10,143,12],[143,14,143,19],[144,2,144,8],[144,10,144,12],[144,14,144,19],[149,0,153,0],[151,16,151,19],[152,1,153,19],[156,1,156,14],[156,16,156,17],[157,1,157,19],[158,1,158,19],[159,2,159,4],[159,6,159,8],[159,10,159,12],[159,14,159,19],[160,2,160,4],[160,6,160,8],[160,10,160,12],[160,14,160,19],[161,1,161,19],[162,1,162,14],[162,16,162,17],[163,1,163,19],[164,1,164,14],[164,16,164,17],[165,1,165,19],[166,1,166,14],[166,16,166,17],[167,1,167,19],[168,1,168,19],[169,1,169,14],[169,16,169,17],[170,1,171,19],[172,1,172,19],[173,1,173,14],[173,16,173,17],[174,1,174,14],[174,16,174,17],[175,1,175,19],[176,1,176,14],[176,16,176,17],[177,1,178,19],[179,1,179,19],[180,1,180,19],[181,1,181,19],[182,1,182,19],[183,1,183,19],[184,1,184,14],[184,16,184,17],[185,1,185,19],[186,1,186,14],[186,16,186,17],[187,1,187,19],[188,1,188,14],[188,16,188,17],[189,1,189,14],[189,16,189,17],[190,1,190,14],[190,16,190,17],[191,1,191,14],[191,16,191,17],[192,1,192,19],[193,1,193,19],[194,1,197,19],[198,1,198,2],[198,3,198,10],[198,11,198,14],[198,15,198,19],[199,1,199,2],[199,3,199,10],[199,11,199,14],[199,15,199,19],[201,1,201,2],[201,7,201,19],[202,0,206,0],[202,7,202,19],[204,16,204,19],[205,1,206,19]]}
[]
[]
[]
[]
[null,"Ausfüllanleitung:\nBitte füllen Sie alle Fragepunkte aus.\nWird eine Frage in Teil II mit „Ja“ beantwortet, sind bei nicht mit (1) oder (2) zertifizierten Lieferanten kurze Beschreibungen der internen Vorgehensweise beizufügen.\nKönnen Sie eine Frage nicht beantworten, geben Sie bitte die Gründe dafür auf der letzten Seite an (keine Zeilenbeschränkung) oder verwenden Sie ein Extrablatt.\n",{"$nulls":19},{"$f":"SUM(Z58,Z70,Z88,Z114)","v":{"v":0,"d":"Erreichte Punkte: 0"}}]
[]
[{"$nulls":21},"Anzahl Fragen",null,"Über-\nprüfen:"]
[{"$nulls":21},"Block A:",10,{"$f":"COUNTIF(Z71:Z83,\"ja oder nein\")","v":11}]
[{"$nulls":21},"Block B:",10,{"$f":"COUNTIF(Z71:Z83,\"ja oder nein\")","v":11}]
[null,"Teil I",{"$nulls":19},"Block C:",4,{"$f":"COUNTIF(Z89:Z94,\"ja oder nein\")","v":4}]
[null,"Allgemeine Angaben"]
[null,"Firma"]
[null,"Anschrift"]
[null,"Tel.-Nr.",{"$nulls":7},"E-Mail"]
[null,"Website"]
[null,"USt-IdNr.",{"$nulls":7},"D&B D-U-N-S® Nummer"]
[null,"Branche",null,"     ",{"$nulls":5},"Andere:"]
[null,"Portfolio"]
[null,"Rechnungssteller",{"$nulls":4},"siehe Anschrift",{"$nulls":3}," abweichend → siehe Anlage (bitte beilegen)"]
[null,"Bestellwährung",{"$nulls":4},"EUR (Euro)"]
[null,"Zahlungsbedingungen"]
[null,"Lieferung",{"$nulls":4},"DDP Incoterm 2010"]
[]
[{"$nulls":4},"Ansprechpartner",{"$nulls":3},"Telefon und E-Mail",{"$nulls":8},"Anzahl der Personen im Bereich"]
[null,"Geschäftsführung"]
[null,"Produktion"]
[null,"Qualität"]
[null,"Vertrieb"]
[null,"F&E"]
[]
[null,"Rechtsform",{"$nulls":5},"Gerichtsstand",{"$nulls":6},"Gegründet am"]
[null,"Gesamtanzahl Mitarbeiter"]
[null,"Gesellschafter / Geschäftsanteil in %"]
[]
[null,"Tochtergesellschaft(en)"]
[]
[null,"Kooperationen"]
[]
[]
[{"$nulls":5},"Vorletztes GJ",{"$nulls":4},"Letztes GJ",{"$nulls":3},"Laufendes GJ"]
[null,"Umsatz"]
[null,"Investitionen in F&E"]
[]
[null,"Sind Sie:",null,null,"OEM",null,"Franchise Händler",{"$nulls":3},"  konzessionierter Vertreiber"]
[]
[null,"Kundenreferenzen (bitte besonders Projekte in der Rüstungsindustrie auflisten)"]
[null,"Firma",null,null,"Branche",null,null,"Kontaktperson",{"$nulls":4},"Projekte / Produkte"]
[]
[]
[]
["    BCF-LES-000  04"]
[]
[{"$nulls":16},"Seite 1 von 4"]
[null,"© Bayern-Chemie Gesellschaft für flugchemische Antriebe mbH.  Weitergabe sowie Vervielfältigung dieses Dokuments, Verwertung und Mitteilung seines Inhalts sind verboten, soweit nicht ausdrücklich gestattet.  Zuwiderhandlungen verpflichten zu Schadenersatz.  Alle Rechte für den Fall der Patent-, Gebrauchsmuster- oder Geschmacksmustereintragung vorbehalten."]
[]
[]
[null,"Teil II"]
[null,"Zertifikate, Qualitätssicherung (bitte Kopien der Zertifikate / Nachweise beifügen)",{"$nulls":22},"Punkte",{"$f":"SUM(Z59:Z64)","v":0}]
[null,"Zertifiziert nach",null,"(1)",{"$nulls":4},"(2)",{"$nulls":4},"(3)",{"$nulls":7},"EN 9100",false,23,null,{"$f":"IF(OR(W59=TRUE,W60=TRUE,W61=TRUE),23,0)","v":0}]
[{"$nulls":21},"AQAP",false,23]
[{"$nulls":4},"EN 9100 / 9120 oder",{"$nulls":4},"DIN EN ISO 9001",{"$nulls":4}," Sonstige:",{"$nulls":6},"IATF",false,23]
[{"$nulls":4},"AQAP oder",{"$nulls":9}," Pri Nadcap",{"$nulls":6},"ISO 9001",false,18,null,{"$f":"IF(AND(W62=TRUE,Z59=0),X62,0)","v":0}]
[{"$nulls":4},"IATF 16949",{"$nulls":16},"Sonstige",false,0,null,0]
[{"$nulls":21},"Pri Nadcap",false,0,null,0]
[{"$nulls":25},{"$f":"SUM(Z59:Z64)","v":0}]
[{"$nulls":3},"weiter mit Block C",{"$nulls":4},"weiter mit Block B + C",{"$nulls":4},"weiter mit Block A - C",{"$nulls":7},"kein Zertifikat",false,0]
[]
[null,null,"Nicht zertifiziert, jedoch eingeführter Managementprozess, siehe nachstehenden Fragen (bitte Block A - C beantworten)"]
[]
[null,"Block A",null,{"$f":"IF($Z$58=23,\"Sie haben ein Zertifikat aus Bereich (1) gewählt - weiter mit Block C\",IF($Z$58=18,\"Sie haben ein Zertifikat aus Bereich (2) gewählt - weiter mit Block B + C\",\"Bitte beantworten Sie die Fragen aus \"&B70))","v":"Bitte beantworten Sie die Fragen aus Block A"},{"$nulls":17},"ja:","Punkte","nein:","Punkte",{"$f":"SUM(Z71:Z74,Z76:Z80,Z83)","v":0}]
[null,"Verfügen Sie über einen geregelten Beschaffungsprozess?",{"$nulls":14},"Ja",null,null,"Nein",null,false,2,false,-2,{"$f":"IF(V71=X71,\"ja oder nein\",IF(V71=TRUE,W71,Y71))","v":"ja oder nein"}]
[null,"Verfügen Sie über einen geregelten Prozess zur Arbeitsplanung / -vorbereitung / Projekt-management (bei Dienstleistungen)?",{"$nulls":14},"Ja",null,null,"Nein",null,false,1,false,-1,{"$f":"IF(V72=X72,\"ja oder nein\",IF(V72=TRUE,W72,Y72))","v":"ja oder nein"}]
[null,"Verfügen Sie über einen geregelten Prozess zur Steuerung der Fertigung / Erbringung der Dienstleistung?",{"$nulls":14},"Ja",null,null,"Nein",null,false,1,false,-1,"ja oder nein"]
[null,"Verfügen Sie über einen Prozess zur Fertigungserprobung?",{"$nulls":14},"Ja",null,null,"Nein",null,false,1,false,-1,"ja oder nein"]
[]
[null,"Verfügen Sie über einen Prozess zur Lenkung fehlerhafter Teile?",{"$nulls":14},"Ja",null,null,"Nein",null,false,2,false,-2,{"$f":"IF(V76=X76,\"ja oder nein\",IF(V76=TRUE,W76,Y76))","v":"ja oder nein"}]
[null,"Betreiben Sie Analysen von Abweichungen / Fehlern?",{"$nulls":14},"Ja",null,null,"Nein",null,false,2,false,-1,"ja oder nein"]
[null,"Leiten Sie aus den Ergebnissen dieser Analysen Korrektur- und Vorbeugungsmaßnahmen ab?",{"$nulls":14},"Ja",null,null,"Nein",null,false,2,false,-1,"ja oder nein"]
[null,"Gibt es in Ihrem Unternehmen einen kontinuierlichen Verbesserungsprozess?",{"$nulls":14},"Ja",null,null,"Nein",null,false,2,false,-1,"ja oder nein"]
[null,"Verfügen Sie über ein Änderungsmanagement für Hard-/Software, Design, …?",{"$nulls":14},"Ja",null,null,"Nein",null,false,2,false,-1,"ja oder nein"]
[]
[null,"Verfügen Sie über einen Risikomanagementprozess?",{"$nulls":14},"Ja",null,null,"Nein",null,false,1,false,-1,{"$f":"IF(V82=X82,\"ja oder nein\",IF(V82=TRUE,W82,Y82))","v":"ja oder nein"}]
[null,"Verfügen Sie über einen Reklamationsmanagementprozess?",{"$nulls":14},"Ja",null,null,"Nein",null,false,1,false,-1,{"$f":"IF(V83=X83,\"ja oder nein\",IF(V83=TRUE,W83,Y83))","v":"ja oder nein"}]
[]
[]
[]
[]
[null,"Block B",null,{"$f":"IF($Z$58=23,\"Sie haben ein Zertifikat aus Bereich (1) gewählt - weiter mit Block C\",IF($Z$58=18,\"Sie haben ein Zertifikat aus Bereich (2) gewählt - beantworten Sie bitte die Fragen aus B + C\",\"Bitte beantworten Sie die Fragen aus \"&B88))","v":"Bitte beantworten Sie die Fragen aus Block B"},{"$nulls":17},"ja:","Punkte","nein:","Punkte",{"$f":"SUM(Z89:Z94)","v":0}]
[null,"Verfügen Sie über einen Prozess zur Vermeidung von Counterfeit Parts?",{"$nulls":14},"Ja",null,null,"Nein",null,false,2,false,-3,{"$f":"IF(V89=X89,\"ja oder nein\",IF(V89=TRUE,W89,Y89))","v":"ja oder nein"}]
[null,"Werden Ihre Mitarbeiter regelmäßig darin geschult?",{"$nulls":14},"Ja",null,null,"Nein",null,false,0,false,0,"ja oder nein"]
[]
[null,"Verfügen Sie über einen Obsoleszenz-Managementprozess, über den abgekündigte Bauteile identifiziert,entsprechende Maßnahmen eingeleitet und der Kunde zeitnah informiert wird?",{"$nulls":14},"Ja",null,null,"Nein",null,false,2,false,-2,{"$f":"IF(V92=X92,\"ja oder nein\",IF(V92=TRUE,W92,Y92))","v":"ja oder nein"}]
[]
[null,"Verfügen Sie über eine komplette rückverfolgbare Dokumentation aller Komponenten, die einzeln oder als Bestandteil eines Zusammenbaus geliefert werden?",{"$nulls":14},"Ja",null,null,"Nein",null,false,2,false,-3,{"$f":"IF(V94=X94,\"ja oder nein\",IF(V94=TRUE,W94,Y94))","v":"ja oder nein"}]
{"$rows_empty":10}
["   BCF-LES-000  03"]
[]
[]
[]
[{"$nulls":16},"Seite 2 von 4"]
[null,"© Bayern-Chemie Gesellschaft für flugchemische Antriebe mbH.  Weitergabe sowie Vervielfältigung dieses Dokuments, Verwertung und Mitteilung seines Inhalts sind verboten, soweit nicht ausdrücklich gestattet.  Zuwiderhandlungen verpflichten zu Schadenersatz.  Alle Rechte für den Fall der Patent-, Gebrauchsmuster- oder Geschmacksmustereintragung vorbehalten."]
[]
[]
[]
[null,"Block C",null,{"$f":"IF($Z$58=23,\"Sie haben ein Zertifikat aus Bereich (1) gewählt - beantworten Sie die Fragen aus Block C\",IF($Z$58=18,\"Sie haben ein Zertifikat aus Bereich (2) gewählt - beantworten Sie bitte die Fragen aus B + C\",\"Bitte beantworten Sie die Fragen aus \"&B114))","v":"Bitte beantworten Sie die Fragen aus Block C"},{"$nulls":17},"ja:","Punkte","nein:","Punkte",{"$f":"SUM(Z115:Z133)","v":0}]
[null,"Beinhaltet eines Ihrer Produkte REACH relevante Stoffe?",{"$nulls":14},"Ja",null,null,"Nein",null,false,0,false,0,{"$f":"IF(V115=X115,\"ja oder nein\",IF(V115=TRUE,W115,Y115))","v":"ja oder nein"}]
[null,"Verfügen Sie über einen REACH-Managementprozess?",{"$nulls":14},"Ja",null,null,"Nein",null,false,1,false,-1,{"$f":"IF(V116=X116,\"ja oder nein\",IF(V116=TRUE,W116,Y116))","v":"ja oder nein"}]
[]
[null,"Beinhaltet eines Ihrer Produkte Conflict Minerals?",{"$nulls":14},"Ja",null,null,"Nein",null,false,0,false,0,{"$f":"IF(V118=X118,\"ja oder nein\",IF(V118=TRUE,W118,Y118))","v":"ja oder nein"}]
[null,"Verfügen Sie über einen Conflict Minerals Managementprozess?",{"$nulls":14},"Ja",null,null,"Nein",null,false,1,false,0,{"$f":"IF(V119=X119,\"ja oder nein\",IF(V119=TRUE,W119,Y119))","v":"ja oder nein"}]
[]
[null,"Verfügen Sie über eine Beschreibung Ihrer Betriebsausstattung?",{"$nulls":14},"Ja",null,null,"Nein",null,false,1,false,0,{"$f":"IF(V121=X121,\"ja oder nein\",IF(V121=TRUE,W121,Y121))","v":"ja oder nein"}]
[]
[null,"Verwenden oder beauftragen Sie für Ihren Herstellungsprozess folgende spezielle Prozesse:\nWarmbehandlung, Ultraschallprüfung, Penetranprüfung (Farbeindringverfahren, \nMagnetpulververfahren, Wirbelstromprüfung), Oberflächentechnik (chemisch,\nlackieren, pulverbeschichten), Werkstoffprüfungen (zerstörend / nicht zerstör-\nend), Schweißen (bitte spezifizieren), Löten (bitte spezifizieren), Nieten, Kleben \n(bitte spezifizieren), additive Fertigungsverfahren (z. B. 3D-Druck) oder weitere\nSpezielle Prozesse in Ihrem Verantwortungsbereich?\nFalls zutreffend, bitte den/die speziellen Prozesse auf einen seperaten Blatt\naufführen und spezifizieren.\nWird die Frage mit Ja beantwortet, müssen die 4 folgenden Fragen ebenfalls\nbeantwortet werden ",{"$nulls":14},"Ja",null,null,"Nein",null,false,0,false,0,{"$f":"IF(V123=X123,\"ja oder nein\",IF(V123=TRUE,W123,Y123))","v":"ja oder nein"}]
[null,"Haben Sie ihre/n spezielle/n Prozess/e nach festgelegten Kriterien (z. B. Prozessstabilität) geprüft und freigegeben?",{"$nulls":14},"Ja",null,null,"Nein",null,false,0,false,0,{"$f":"IF(V124=X124,\"ja oder nein\",IF(V124=TRUE,W124,Y124))","v":"ja oder nein"}]
[null,"Haben Sie ausreichende Maßnahmen ergriffen, um eine gleichbleibende Qualität der Prozess-ergebnisse zu gewährleisten (z. B. Prozessstabilisierung über Steuerung / Regelung der Parameter, mitlaufende Muster o. ä.)",{"$nulls":14},"Ja",null,null,"Nein",null,false,0,false,0,{"$f":"IF(V125=X125,\"ja oder nein\",IF(V125=TRUE,W125,Y125))","v":"ja oder nein"}]
[null,"Werden Anlagen und Einrichtungen, auf welchen Sie spezielle Prozesse betreiben, vor Inbetriebnahme überprüft und genehmigt?",{"$nulls":14},"Ja",null,null,"Nein",null,false,0,false,0,{"$f":"IF(V126=X126,\"ja oder nein\",IF(V126=TRUE,W126,Y126))","v":"ja oder nein"}]
[null,"Wird die qualifikation des Personals, das spezielle Prozesse betreibt, regelmäßig geprüft und aufrechterhalten?",{"$nulls":14},"Ja",null,null,"Nein",null,false,0,false,0,"ja oder nein"]
[]
[null,"Entspricht Ihr Informationssicherheitsmanagementsystem dem vom BSI entwickelten IT-Grund-schutz (BSI-Standard 100-2 IT Grundschutz)?",{"$nulls":14},"Ja",null,null,"Nein",null,false,1,false,-1,{"$f":"IF(V129=X129,\"ja oder nein\",IF(V129=TRUE,W129,Y129))","v":"ja oder nein"}]
[]
[null,"Gibt es Richtlinien und Verfahren, die sicherstellen, dass Produkte und geistige Eigentums-rechte (IPR) sicher sind und dass Dritte keinen Zugang zu vertraulichen Daten, Technologien und Know-how haben?",{"$nulls":14},"Ja",null,null,"Nein",null,false,1,false,-1,{"$f":"IF(V131=X131,\"ja oder nein\",IF(V131=TRUE,W131,Y131))","v":"ja oder nein"}]
[]
[null,"Haben Sie eine angemessene Cyber-Sicherheitsrichtlinie und -kontrollen (einschließlich Aufklärung und Software), um Informationen und Systeme vor Cyberangriffen zu schützen?",{"$nulls":14},"Ja",null,null,"Nein",null,false,1,false,-1,{"$f":"IF(V133=X133,\"ja oder nein\",IF(V133=TRUE,W133,Y133))","v":"ja oder nein"}]
[]
[null,"Sind Ihre Produkte von folgenden Vorschriften betroffen?",{"$nulls":5},"Nationale Exportkontrollvorschriften",{"$nulls":8},"Ja",null,null,"Nein"]
[{"$nulls":7},"US-Reexportkontrollvorschriften",{"$nulls":8},"Ja",null,null,"Nein"]
[{"$nulls":7},"Exportkonrollvorschriften anderer Länder",{"$nulls":8},"Ja",null,null,"Nein"]
[]
[null,"Verfügen Sie über ein Umweltmanagement?",{"$nulls":14},"Ja",null,null,"Nein"]
[null,"Werden regelmäßig umweltrelevante Optimierungsmaßnahmen durchgeführt?",{"$nulls":14},"Ja",null,null,"Nein"]
[]
[null,"Welche der folgenden Leistungen werden von Ihnen angeboten?"]
[null,null,"Spezialverpackungen nach Kundenwunsch",{"$nulls":7},"Verwendung der Verpackung vom Kunden"]
[null,null,"Eigener Versand",{"$nulls":7},"Spedition",{"$nulls":3},"Sonstiges"]
[null,null,"Kundenhotline",{"$nulls":7},"Kundendienst",{"$nulls":3},"Schulungen für den Kunden"]
[]
[]
[]
[]
["   BCF-LES-000  04"]
[]
[{"$nulls":16},"Seite 3 von 4"]
[null,"© Bayern-Chemie Gesellschaft für flugchemische Antriebe mbH.  Weitergabe sowie Vervielfältigung dieses Dokuments, Verwertung und Mitteilung seines Inhalts sind verboten, soweit nicht ausdrücklich gestattet.  Zuwiderhandlungen verpflichten zu Schadenersatz.  Alle Rechte für den Fall der Patent-, Gebrauchsmuster- oder Geschmacksmustereintragung vorbehalten."]
[]
[]
[]
[null,"Werden Ihre Mitarbeiter regelmäßig aus- und weitergebildet?",{"$nulls":14},"Ja",null,null,"Nein"]
[]
[null,"Führen Sie Schutzmaßnahmen in folgenden Bereichen durch? (bitte Nachweise beifügen)"]
[null,null," Mitarbeiter",{"$nulls":3},"Vermögenswerte",{"$nulls":3},"Infrastruktur",{"$nulls":3},"Ansehen"]
[null,null,"geistiges Eigentum",{"$nulls":3},"Standort",{"$nulls":3},"IT",{"$nulls":3},"Sonstige"]
[null," "]
[null,"Ist Ihre Firma im Besitz / unter der Kontrolle einer staatlichen Organisation  / deren Beamten oder wird sie subventioniert?",{"$nulls":14},"Ja",null,null,"Nein"]
[]
[null,"Arbeiten in Ihrer Firma aktive oder ehemalige Beamte in Führungsebenen?",{"$nulls":14},"Ja",null,null,"Nein"]
[]
[null,"Verfügen Sie über einen Verhaltenskodex, Richtlinien und Kontrollen (z. B. für Vertrauens-würdigkeit, Integrität, Transparenz, Geheimhaltung)?",{"$nulls":14},"Ja",null,null,"Nein"]
[null,"Falls nicht verfügbar, bitte erläutern:"]
[]
[null,"Kennen und verstehen Sie Ihre nationale Gesetze zur Verhinderung von Betrug und Korruption und die Rechtsvorschriften Ihrer Geschäftspartner?",{"$nulls":14},"Ja",null,null,"Nein"]
[null,"Bitte erläutern Sie, welche vorbeugende Maßnahmen Sie ergreifen, um sicherzustellen, dass Bestechung und Korruption nicht innerhalb der Lieferkette Ihrerer Lieferanten stattfinden."]
[]
[]
[null,"Gibt es ein Meldeverfahren für eventuell auftretende Verstöße?",{"$nulls":14},"Ja",null,null,"Nein"]
[null,"Wurden Sie in den letzten 10 Jahren wegen Bestechung und Korruption verurteilt oder gibt es offene Ermittlungen?",{"$nulls":14},"Ja",null,null,"Nein"]
[]
[null,"Hat Ihr Unternehmen eine Richtlinie gegen Sklaverei und Menschenhandel?",{"$nulls":14},"Ja",null,null,"Nein"]
[null,"Bitte bestätigen Sie, welche Schritte Sie unternommen haben und / oder beabsichtigen zu unternehmen, um sicherzustellen, dass Sklaverei und Menschenhandel unterbunden werden:"]
[]
[null,"1) In Ihrem Unternehmen:"]
[]
[null,"2) In Ihrer Lieferkette:"]
[]
[]
[null,"Hat Ihr Unternehmen in den letzten 10 Jahren Menschenrechtsverletzungen begangen oder gibt es offene Ermittlungen?",{"$nulls":14},"Ja",null,null,"Nein"]
[]
[null,"Verfügen Sie Angebote im Rahmen der Corporate Social Responsibility?",{"$nulls":14},"Ja",null,null,"Nein"]
[]
[null,"Verfügen Sie über einen Prozess, mit dem Sie die Einhaltung von gesetzlichen, normativen, ehtischen oder von Kunden gestellten Forderungen bei Ihren Lieferanten überwachen?",{"$nulls":14},"Ja",null,null,"Nein"]
[null,"Leiten Sie diese Anforderungen an Ihre Lieferanten durch?",{"$nulls":14},"Ja",null,null,"Nein"]
[null,"Verfügen Sie über eine Risikobewertung Ihrer Lieferanten?",{"$nulls":14},"Ja",null,null,"Nein"]
[null,"Leiten Sie diese Anforderungen an Ihre Lieferanten durch?",{"$nulls":14},"Ja",null,null,"Nein"]
[]
[null,"Wenn Sie Fragen nicht beantworten konnten, geben Sie bitte hier die Gründe dafür an oder fügen ein Extrablatt bei:"]
[]
[]
[]
[]
[]
[null,"Datum",null,"Name, Funktion",{"$nulls":7},"Telefonnummer",{"$nulls":3},"Unterschrift"]
[]
[null,"Anlagen:",{"$nulls":5},"Bei Fragen/Anmerkungen wenden Sie sich bitte an:"]
["   BCF-LES-000  04",{"$nulls":6},"procurement-bc@mbda-systems.de"]
[]
[{"$nulls":16},"Seite 4 von 4"]
[null,"© Bayern-Chemie Gesellschaft für flugchemische Antriebe mbH.  Weitergabe sowie Vervielfältigung dieses Dokuments, Verwertung und Mitteilung seines Inhalts sind verboten, soweit nicht ausdrücklich gestattet.  Zuwiderhandlungen verpflichten zu Schadenersatz.  Alle Rechte für den Fall der Patent-, Gebrauchsmuster- oder Geschmacksmustereintragung vorbehalten."]

{"sheet":"Risikobetrachtung","index":2,"n_rows":58,"n_cols":19,"rows_kept":58,"hidden":true,"merged":[[3,1,3,18],[4,1,4,18],[5,1,5,18],[6,1,6,18],[7,1,7,4],[8,1,8,14],[8,15,8,17],[9,1,9,18],[11,1,11,18],[12,1,12,14],[13,1,13,18],[14,1,14,18],[15,1,15,14],[16,1,16,13],[16,15,16,18],[17,1,17,13],[17,15,17,18],[18,1,18,13],[19,1,19,13],[20,1,20,13],[21,1,21,18],[22,1,22,18],[23,1,23,13],[24,1,24,13],[25,1,25,13],[26,1,26,13],[27,1,27,13],[28,1,28,18],[29,1,29,14],[30,1,30,18],[35,1,35,18],[36,1,36,18],[37,1,37,18],[38,1,38,18],[39,1,39,18],[40,1,40,18],[41,13,41,17],[42,3,44,3],[42,14,42,15],[43,14,43,15],[44,14,44,15],[46,5,46,8],[47,1,48,18],[50,1,50,16],[51,1,51,16],[54,0,57,0],[54,1,54,18],[55,1,55,14],[56,1,56,14]]}
[]
[]
[]
[null,"Risikobewertung Lieferantenzulassung"]
[]
[null,{"$f":"\"Lieferant: \"&Lieferantenfragebogen!D12","v":"Lieferant: "}]
[]
[null,"Teilnehmer",{"$nulls":16},"Datum"]
[]
[]
[null,"Risikoeinstufung aus Lieferantenfragebogen",{"$nulls":13},{"$f":"Auswertung!F6","v":"C"}]
[]
[null,"Geplante Verwendung des Produktes (Projekt):"]
[]
[]
[null,"Auslöser",{"$nulls":13},"Bemerkung"]
[null,"Single Source"]
[null,"Lieferant vorgegeben"]
[null,"AQAP Forderungen wurden nicht weitergereicht"]
[null,"AQAP Forderungen werden nicht akzeptiert"]
[null,"Zutrittsrechte werden nicht gewährt"]
[]
[null,"Einstufung der Auswirkung des Ausfalls des zu beschaffenden Produktes"]
[null,"Level - Auswirkung:",{"$nulls":13},"Risikostufe",{"$f":"SUM(P25:P28)","v":0}]
[null,"1 - keine/minor Auswirkung",{"$nulls":13},{"$f":"IF(Q25=TRUE,1,\"\")","v":""},false]
[null,"2 - Auswirkung BC-Prozesse",{"$nulls":13},{"$f":"IF(Q26=TRUE,2,\"\")","v":""},false]
[null,"3 - Missionsauswirkungen",{"$nulls":13},{"$f":"IF(Q27=TRUE,3,\"\")","v":""},false]
[null,"4 - Sicherheitsauswirkungen",{"$nulls":13},{"$f":"IF(Q28=TRUE,4,\"\")","v":""},false]
[]
[null,"Begründung:      "]
[]
[]
[]
[]
[]
[null,"Risikobewertung Lieferantenzulassung"]
[]
[null,{"$f":"\"Lieferant: \"&Lieferantenfragebogen!D12","v":"Lieferant: "}]
[]
[]
[null,"Matrix Gesamtrisiko"]
[{"$nulls":13},"Risikostufe"]
[{"$nulls":3},"LES-Level","C",{"$f":"IF(Hilfstabelle!$E$7=Hilfstabelle!E4,\"X\",\"\")","v":""},{"$f":"IF(Hilfstabelle!$E$7=Hilfstabelle!E3,\"X\",\"\")","v":""},{"$f":"IF(Hilfstabelle!$E$7=Hilfstabelle!F3,\"X\",\"\")","v":""},{"$f":"IF(Hilfstabelle!$E$7=Hilfstabelle!G3,\"X\",\"\")","v":""},{"$nulls":4},{"$f":"IF(OR(F44=\"X\",F45=\"X\",G45=\"X\"),\"X\",\"\")","v":""},"grün (gering)",null,"Keine Maßnahmen erforderlich"]
[{"$nulls":4},"B",{"$f":"IF(Hilfstabelle!$E$7=Hilfstabelle!F5,\"X\",\"\")","v":""},{"$f":"IF(Hilfstabelle!$E$7=Hilfstabelle!F4,\"X\",\"\")","v":""},{"$f":"IF(Hilfstabelle!$E$7=Hilfstabelle!G4,\"X\",\"\")","v":""},{"$f":"IF(Hilfstabelle!$E$7=Hilfstabelle!H3,\"X\",\"\")","v":""},{"$nulls":4},{"$f":"IF(OR(F43=\"X\",G44=\"X\",H44=\"X\",H45=\"X\",I45=\"X\"),\"X\",\"\")","v":""},"gelb (mittel)",null,"Maßnahmen erforderlich"]
[{"$nulls":4},"A",{"$f":"IF(Hilfstabelle!$E$7=Hilfstabelle!E5,\"X\",\"\")","v":""},{"$f":"IF(Hilfstabelle!$E$7=Hilfstabelle!G5,\"X\",\"\")","v":""},{"$f":"IF(Hilfstabelle!$E$7=Hilfstabelle!H5,\"X\",\"\")","v":""},{"$f":"IF(Hilfstabelle!$E$7=Hilfstabelle!H4,\"X\",\"\")","v":""},{"$nulls":4},{"$f":"IF(OR(G43=\"X\",H43=\"X\",I43=\"X\",I44=\"X\"),\"X\",\"\")","v":""},"rot (hoch)",null,"Maßnahmen erforderlich"]
[{"$nulls":5},1,2,3,4]
[{"$nulls":5},"Auswirkung"]
[null,"Die Einstufung des Gesamtrisikos ergibt sich aus dem Schnittpunkt von LES-Level und der Auswirkung."]
[]
[]
[null,"Zu ergreifende Maßnahmen/bereits eingeleitete Aktionen:",{"$nulls":15},"Verantwortlich:"]
[]
[]
[null,"Risikomanagement  ja         nein       - mit Begründnung"]
["BCF-LES-000  04"]
[null,"Datum nächste Überprüfung: "]
[]
[null,"GQAR ist zu informieren: ",{"$nulls":13},"ja","nein  "]

{"sheet":"Hilfstabelle","index":3,"n_rows":26,"n_cols":8,"rows_kept":26,"hidden":true}
[]
[1,null,null,"Tabelle für das automatische Ausfüllen der Matrix"]
["Teile:",null,null,"rot","2C","3C","4C","4B"]
["Bitte wählen…",null,null,"gelb","1C","2B","3B","4A"]
["ATE-Mechanik A-Teile",null,null,"grün","1A","1B","2A","3A"]
["BTE-Mechanik B-Teile"]
["CHE-Chemie",null,null,"Ergebnis",{"$f":"Risikobetrachtung!Q24&Risikobetrachtung!P11","v":"0C"}]
["CTE-Mechanik C-Teile"]
["DIE-Dienstleister"]
["DIN-/Normteile"]
["EKO-Elektronikkomponente"]
["ELE-Elektronikbaugruppe"]
["ENE-ENERGIE-Technik"]
["GAL-Galvanik"]
["GUS-Gußteile"]
["HAL-Halberzeuge"]
["HBE-Hilfs-/Betriebsst."]
["ITE-Info-Technologie"]
["MET-Metallbearbeitung"]
["OPT-Optik"]
["SOF-Software"]
["SPE-Sprengstoffe"]
["SYS-Systemhaus"]
["TRA-Travel"]
["VER-Verpackung"]
["ZUE-Zündmittel"]

{"sheet":"PID","index":4,"n_rows":1,"n_cols":1,"rows_kept":1,"hidden":true}
["PID"]